bitfinex/quotes_SOLUSD_20251116
["timestamp","ask_amount","ask_price","bid_price","bid_amount"]
[1763337154518,5.61220461,138.09,138.07,0.68]
[1763337155037,5.61220461,138.08,138.06,9.78882769]
[1763337155230,5.61220461,138.08,137.94,20.01643656]
[1763337155231,5.61220461,138.07,138.03,9.78882769]
[1763337155433,23.3112,138.08,138.03,9.78882769]
[1763337155434,5.61220461,138.05,138.03,9.78882769]
[1763337155630,5.61220461,138.05,138.03,10.46882769]
[1763337156241,23.3112,138.08,138.03,10.46882769]
[1763337156242,5.61220461,138.04,138.03,10.46882769]
[1763337156425,5.61220461,138.05,138.03,10.46882769]
[1763337156627,5.61220461,138.04,138.01,9.78882769]
[1763337156940,5.61220461,138.04,138.01,10.46882769]
[1763337157243,5.61220461,138.04,138.0,9.78882769]
[1763337157244,5.61220461,138.02,138.0,9.78882769]
[1763337157541,0.66,138.04,137.99,9.78882769]
[1763337157542,5.61220461,138.01,137.99,9.78882769]
[1763337157760,0.66,138.03,137.97,0.88]
[1763337157761,5.61220461,138.0,137.97,0.88]
[1763337157913,5.61220461,137.99,137.98,9.78882769]
[1763337158120,5.61220461,138.0,137.98,10.46882769]
[1763337158332,23.1171103,138.03,137.98,10.46882769]
[1763337158541,5.61220461,137.99,137.97,0.2]
[1763337158734,5.61220461,137.98,137.97,9.98882769]
[1763337158934,7.61220461,138.1,137.97,9.98882769]
[1763337158935,22.6512,138.05,137.97,10.66882769]
[1763337159128,22.6512,138.05,138.03,11.90003312]
[1763337159318,5.61220461,138.04,138.03,21.68886081]
[1763337159519,5.61220461,138.04,138.03,9.78882769]
[1763337160749,28.72340461,138.04,138.03,11.91255564]
[1763337160937,22.6512,138.02,137.98,0.68]
[1763337161123,5.61220461,138.0,137.99,9.78882769]
[1763337162254,5.61220461,138.0,137.97,0.2]
[1763337162429,5.61220461,137.98,137.97,10.66882769]
[1763337162745,22.6512,138.02,137.98,9.78882769]
[1763337162950,5.61220461,137.99,137.98,10.46882769]
[1763337166822,22.6512,138.05,137.98,10.46882769]
[1763337167028,22.6512,138.06,138.02,21.70707157]
[1763337167330,23.1112,138.06,138.02,21.70707157]
[1763337167531,22.6512,138.06,138.02,21.70707157]
[1763337167739,0.46,138.05,138.02,21.70707157]
[1763337167945,0.46,138.05,138.02,9.78882769]
[1763337168248,5.61220461,138.03,138.02,9.78882769]
[1763337168824,5.61220461,138.03,138.02,21.70707157]
[1763337169036,5.61220461,138.03,138.01,11.91824388]
[1763337169037,6.07220461,138.03,138.01,11.91824388]
[1763337169348,6.07220461,138.02,138.0,9.78882769]
[1763337169547,5.61220461,138.01,137.99,11.91824388]
[1763337169769,11.22440922,138.0,137.99,11.91824388]
[1763337169978,33.23646313,138.0,137.97,12.11824388]
[1763337170266,5.61220461,137.98,137.97,21.90707157]
[1763337170467,5.61220461,137.98,137.97,9.98882769]
[1763337170968,5.61220461,137.98,137.97,21.90707157]
[1763337171175,6.07220461,137.98,137.97,0.2]
[1763337173768,5.61220461,137.98,137.97,21.90707157]
[1763337173968,5.61220461,138.0,137.97,10.66882769]
[1763337174272,5.61220461,138.0,137.99,21.6933337]
[1763337174647,28.26340461,138.0,137.99,21.6933337]
[1763337174873,28.26340461,138.0,137.99,9.78882769]
[1763337175249,28.26340461,138.0,137.99,21.6933337]
[1763337175449,28.26340461,138.0,137.99,9.78882769]
[1763337175874,28.26340461,138.0,137.97,12.10450601]
[1763337175875,28.72340461,138.0,137.97,12.10450601]
[1763337176171,5.61220461,137.98,137.97,0.2]
[1763337176541,6.07220461,137.98,137.97,0.2]
[1763337177360,0.49275344,137.98,137.97,0.2]
[1763337180306,50.0,138.07,137.97,0.88]
[1763337180574,5.61220461,137.98,137.97,9.98882769]
[1763337180870,9.40047092,137.98,137.97,9.98882769]
[1763337181071,9.40047092,137.98,137.97,10.66882769]
[1763337181450,9.40047092,137.98,137.97,22.56605167]
[1763337183174,9.40047092,137.98,137.97,21.88605167]
[1763337183370,32.05167092,137.98,137.97,9.98882769]
[1763337183571,9.40047092,137.98,137.97,0.2]
[1763337183877,22.6512,137.99,137.97,0.2]
[1763337184098,9.40047092,137.98,137.97,0.2]
[1763337185371,9.40047092,137.98,137.97,10.66882769]
[1763337185571,32.05167092,137.98,137.97,10.66882769]
[1763337185786,32.05167092,137.98,137.97,9.98882769]
[1763337185999,9.40047092,137.99,137.98,9.78882769]
[1763337186493,9.40047092,137.99,137.97,0.2]
[1763337186695,9.40047092,137.98,137.97,0.2]
[1763337186877,9.40047092,137.98,137.97,0.88]
[1763337187842,9.40047092,137.98,137.97,0.2]
[1763337188977,32.05167092,137.98,137.97,0.2]
[1763337189980,9.40047092,137.98,137.97,10.66882769]
[1763337190385,50.0,138.08,137.98,9.78882769]
[1763337190709,9.40047092,138.0,137.98,10.46882769]
[1763337190911,9.40047092,137.99,137.98,10.46882769]
[1763337191409,9.40047092,137.99,137.97,0.2]
[1763337191615,22.6512,138.03,137.98,0.68]
[1763337191819,9.40047092,137.99,137.98,0.68]
[1763337192188,50.0,138.08,137.98,0.68]
[1763337192425,22.6512,138.05,137.98,0.68]
[1763337193189,9.40047092,138.01,137.99,9.78882769]
[1763337193689,9.40047092,138.0,137.97,0.2]
[1763337194094,9.40047092,138.0,137.99,9.78882769]
[1763337194598,9.40047092,138.0,137.99,0.68]
[1763337196205,9.40047092,138.01,137.99,0.68]
[1763337196515,9.40047092,138.0,137.99,0.68]
[1763337197708,59.50047092,138.12,137.99,0.68]
[1763337197909,9.40047092,138.04,138.0,9.78882769]
[1763337198122,9.40047092,138.03,138.0,9.78882769]
[1763337198320,9.40047092,138.03,138.02,9.78882769]
[1763337198699,9.40047092,138.03,138.02,10.49882769]
[1763337201600,9.40047092,138.03,137.97,0.2]
[1763337201601,52.0,138.02,137.97,0.2]
[1763337201923,82.05167092,137.98,137.93,0.2]
[1763337202101,9.40047092,137.94,137.93,0.2]
[1763337203937,22.6512,137.9,137.89,0.2]
[1763337204101,32.05167092,137.9,137.84,0.91]
[1763337204431,9.40047092,137.86,137.85,9.78882769]
[1763337204607,1.20836285,137.86,137.85,0.71]
[1763337204814,96.88491282,137.95,137.85,0.71]
[1763337205123,9.40047092,137.89,137.85,0.71]
[1763337205504,22.6512,137.92,137.85,0.71]
[1763337205713,50.0,137.97,137.85,0.71]
[1763337205714,9.40047092,137.9,137.85,0.71]
[1763337207111,9.40047092,137.89,137.86,9.78882769]
[1763337207629,9.40047092,137.89,137.88,9.78882769]
[1763337208014,9.40047092,137.89,137.88,0.71]
[1763337208325,0.7,137.95,137.88,0.71]
[1763337208532,50.0,137.99,137.88,0.71]
[1763337208533,9.40047092,137.92,137.88,0.71]
[1763337209324,9.40047092,137.92,137.89,9.78882769]
[1763337209724,9.40047092,137.92,137.91,9.78882769]
[1763337210240,9.40047092,137.92,137.91,0.71]
[1763337210541,9.40047092,138.0,137.91,0.71]
[1763337210542,9.40047092,137.93,137.91,0.71]
[1763337212420,22.6512,137.96,137.91,0.71]
[1763337212626,9.40047092,137.94,137.91,0.71]
[1763337213733,9.40047092,137.95,137.91,0.71]
[1763337213935,22.6512,137.96,137.91,0.71]
[1763337213936,9.40047092,137.94,137.91,0.71]
[1763337214751,1.23227075,137.94,137.91,0.71]
[1763337216054,9.40047092,137.93,137.91,0.71]
[1763337217150,9.40047092,137.93,137.88,26.04190418]
[1763337217350,9.40047092,137.91,137.9,9.78882769]
[1763337217756,9.40047092,137.91,137.9,0.68]
[1763337218054,9.40047092,137.94,137.9,0.68]
[1763337219350,9.40047092,137.95,137.9,0.68]
[1763337221040,9.40047092,137.94,137.9,0.68]
[1763337223858,9.40047092,137.92,137.9,0.68]
[1763337224659,9.40047092,137.93,137.9,0.68]
[1763337225247,9.40047092,137.93,137.91,9.78882769]
[1763337225731,9.40047092,137.93,137.91,0.68]
[1763337226558,0.65,137.96,137.91,0.68]
[1763337226767,9.40047092,137.93,137.91,0.68]
[1763337228462,0.65,137.93,137.9,9.78882769]
[1763337228662,9.40047092,137.92,137.9,9.78882769]
[1763337229256,9.40047092,137.91,137.9,9.78882769]
[1763337229755,9.40047092,137.92,137.9,0.68]
[1763337229932,9.40047092,137.92,137.89,9.78882769]
[1763337230461,22.6512,137.96,137.91,9.78882769]
[1763337230659,9.40047092,137.93,137.91,9.78882769]
[1763337230964,9.40047092,137.93,137.91,10.46882769]
[1763337231750,9.40047092,137.93,137.89,0.68]
[1763337232874,9.40047092,137.93,137.9,9.78882769]
[1763337233064,9.40047092,137.93,137.9,10.46882769]
[1763337235370,9.40047092,137.94,137.9,10.46882769]
[1763337235752,9.40047092,137.93,137.9,10.46882769]
[1763337236663,9.40047092,137.93,137.9,0.68]
[1763337240952,10.12047092,137.93,137.88,0.69]
[1763337241166,10.12047092,137.93,137.89,9.78882769]
[1763337241371,0.72,137.95,137.9,0.69]
[1763337241676,9.40047092,137.93,137.9,0.69]
[1763337242767,5.62780019,137.93,137.9,0.69]
[1763337244203,0.61957744,137.93,137.9,0.69]
[1763337244394,0.61957744,137.93,137.91,9.78882769]
[1763337245277,5.62780019,137.93,137.91,9.78882769]
[1763337246214,6.34780019,137.92,137.9,9.78882769]
[1763337246387,5.62780019,137.91,137.87,9.78882769]
[1763337246717,5.62780019,137.88,137.84,16.45307649]
[1763337247014,22.6512,137.89,137.84,0.89]
[1763337247015,2.16331817,137.87,137.84,0.89]
[1763337247188,2.16331817,137.86,137.85,9.78882769]
[1763337247505,2.16331817,137.91,137.85,10.47882769]
[1763337247678,2.16331817,137.91,137.87,9.78882769]
[1763337248097,2.16331817,137.9,137.87,0.69]
[1763337248271,2.16331817,137.9,137.86,9.78882769]
[1763337248272,2.16331817,137.89,137.86,9.78882769]
[1763337248673,24.81451817,137.92,137.86,9.78882769]
[1763337248986,2.16331817,137.87,137.84,9.98882769]
[1763337249189,2.16331817,137.85,137.84,9.98882769]
[1763337249700,2.88331817,137.85,137.84,9.98882769]
[1763337250582,2.16331817,137.85,137.84,9.98882769]
[1763337253596,45.07977175,137.89,137.84,10.67882769]
[1763337253784,2.16331817,137.86,137.84,10.67882769]
[1763337253987,2.16331817,137.86,137.84,9.98882769]
[1763337254200,0.24782683,137.86,137.84,9.98882769]
[1763337254406,0.24782683,137.86,137.84,10.67882769]
[1763337255006,2.16331817,137.89,137.85,0.69]
[1763337255202,8.74666163,137.94,137.86,2.16331817]
[1763337255420,2.16331817,137.93,137.88,9.78882769]
[1763337255606,2.16331817,137.93,137.9,9.78882769]
[1763337256203,144.35196829,139.41,137.87,2.16331817]
[1763337256204,0.67,137.96,137.92,9.78882769]
[1763337256412,2.16331817,137.94,137.92,9.78882769]
[1763337256702,2.16331817,137.93,137.89,9.78882769]
[1763337256901,28.27914124,137.93,137.89,31.84353491]
[1763337257102,28.27914124,137.93,137.89,32.55353491]
[1763337257291,0.67,137.97,137.9,0.71]
[1763337257491,5.62794124,137.95,137.9,6.33794124]
[1763337257714,5.62794124,137.95,137.92,9.78882769]
[1763337257914,5.62794124,138.0,137.92,9.78882769]
[1763337257915,5.62794124,137.94,137.92,9.78882769]
[1763337258208,5.62794124,137.93,137.9,10.49882769]
[1763337258904,0.67,137.95,137.92,9.78882769]
[1763337259104,5.62794124,137.94,137.92,9.78882769]
[1763337261635,23.3212,137.97,137.93,9.78882769]
[1763337261933,5.62794124,137.95,137.91,9.78882769]
[1763337262139,5.62794124,137.95,137.91,10.49882769]
[1763337262639,6.29794124,137.95,137.91,10.49882769]
[1763337262970,23.3212,137.97,137.92,0.71]
[1763337263105,5.62794124,137.95,137.92,0.71]
[1763337263307,5.62794124,137.95,137.91,10.49882769]
[1763337263708,6.29794124,137.95,137.91,10.49882769]
[1763337264230,5.62794124,137.94,137.91,10.49882769]
[1763337265241,28.27914124,137.94,137.91,9.78882769]
[1763337265426,22.6512,137.94,137.93,9.78882769]
[1763337265740,22.6512,137.94,137.9,5.62794124]
[1763337265921,22.6512,137.94,137.92,9.78882769]
[1763337266422,22.6512,137.94,137.92,0.71]
[1763337267145,22.6512,137.94,137.93,9.78882769]
[1763337267624,103.2,137.99,137.93,9.78882769]
[1763337267625,5.62794124,137.98,137.93,16.12676893]
[1763337267826,22.6512,137.95,137.93,10.49882769]
[1763337268038,22.6512,137.95,137.94,10.49882769]
[1763337269053,22.6512,137.95,137.94,9.78882769]
[1763337269238,22.6512,137.95,137.94,10.49882769]
[1763337270048,5.62794124,138.0,137.95,9.78882769]
[1763337270237,5.62794124,138.0,137.95,16.12676893]
[1763337270238,22.6512,137.97,137.95,16.12676893]
[1763337270557,22.6512,137.97,137.96,10.45882769]
[1763337271547,6.28794124,137.97,137.94,9.78882769]
[1763337271754,5.62794124,137.97,137.94,10.45882769]
[1763337272051,6.28794124,137.97,137.94,10.45882769]
[1763337272255,6.28794124,137.97,137.93,9.78882769]
[1763337272430,5.62794124,137.96,137.93,10.45882769]
[1763337272628,5.62794124,137.96,137.93,9.78882769]
[1763337272938,5.62794124,137.96,137.93,10.45882769]
[1763337273142,5.62794124,137.97,137.93,9.78882769]
[1763337273341,5.62794124,137.97,137.94,0.67]
[1763337273546,22.6512,137.96,137.95,9.78882769]
[1763337274030,22.6512,137.98,137.95,10.45882769]
[1763337274227,22.6512,137.97,137.96,0.67]
[1763337274433,5.62794124,138.01,137.96,0.67]
[1763337274636,22.6512,138.0,137.96,0.67]
[1763337274849,5.62794124,138.0,137.96,0.67]
[1763337275244,5.62794124,138.01,137.96,6.29794124]
[1763337275444,5.62794124,138.06,138.0,15.41676893]
[1763337275669,103.3,138.07,138.02,15.41676893]
[1763337275835,22.6512,138.05,138.04,9.78882769]
[1763337276039,22.6512,138.05,138.01,9.78882769]
[1763337276255,22.6512,138.05,138.02,6.29794124]
[1763337276443,22.6512,138.05,138.03,9.78882769]
[1763337276647,22.6512,138.05,138.03,10.45882769]
[1763337277361,5.72794124,138.07,138.03,10.45882769]
[1763337277550,22.6512,138.06,138.03,10.45882769]
[1763337278138,5.72794124,138.07,138.03,10.45882769]
[1763337278836,2.15676012,138.06,138.03,10.45882769]
[1763337279038,0.1,138.07,138.05,9.78882769]
[1763337279256,0.1,138.07,138.05,11.94558781]
[1763337279462,0.1,138.07,138.06,10.45882769]
[1763337280978,0.1,138.07,138.06,12.61558781]
[1763337281274,0.1,138.11,138.09,9.78882769]
[1763337281749,0.1,138.11,138.09,10.45882769]
[1763337282151,0.76,138.11,138.06,0.67]
[1763337282470,0.1,138.11,138.07,9.78882769]
[1763337282646,0.1,138.11,138.07,11.94558781]
[1763337282847,0.1,138.11,138.09,9.78882769]
[1763337283044,0.76,138.11,138.09,9.78882769]
[1763337283273,0.1,138.11,138.08,9.78882769]
[1763337283469,0.1,138.11,138.08,12.61558781]
[1763337283652,0.1,138.11,138.1,9.78882769]
[1763337284059,0.1,138.11,138.1,10.45882769]
[1763337284873,0.1,138.11,138.1,16.06913245]
[1763337285872,0.1,138.11,138.1,10.45882769]
[1763337286061,0.1,138.11,138.1,16.06913245]
[1763337287273,0.1,138.11,138.1,9.78882769]
[1763337287459,0.1,138.11,138.08,6.28030476]
[1763337287660,0.1,138.11,138.08,5.61030476]
[1763337287861,0.1,138.11,138.1,9.78882769]
[1763337288464,0.1,138.11,138.1,10.45882769]
[1763337288671,0.1,138.11,138.1,16.06913245]
[1763337289377,0.1,138.12,138.1,16.06913245]
[1763337289572,0.1,138.12,138.11,16.06913245]
[1763337293676,0.1,138.12,138.11,10.45882769]
[1763337293850,0.1,138.12,138.11,9.78882769]
[1763337294456,0.76,138.12,138.11,9.78882769]
[1763337294653,6.37030476,138.12,138.11,9.78882769]
[1763337294875,28.26150476,138.13,138.1,9.78882769]
[1763337295077,28.26150476,138.13,138.08,5.61030476]
[1763337295264,22.6512,138.13,138.09,10.45882769]
[1763337295649,28.26150476,138.13,138.09,10.45882769]
[1763337296558,5.61030476,138.13,138.09,10.45882769]
[1763337296972,5.71030476,138.14,138.1,0.67]
[1763337297656,0.1,138.14,138.1,0.67]
[1763337297859,0.1,138.14,138.1,6.28030476]
[1763337298281,5.71030476,138.14,138.12,9.78882769]
[1763337299078,5.71030476,138.14,138.11,9.78882769]
[1763337299870,5.71030476,138.14,138.08,5.61030476]
[1763337299871,5.61030476,138.13,138.08,6.28030476]
[1763337300061,5.61030476,138.13,138.09,9.78882769]
[1763337300261,0.1,138.14,138.09,10.45882769]
[1763337300460,5.61030476,138.12,138.08,9.78882769]
[1763337300665,0.26,138.13,138.08,10.47882769]
[1763337300872,5.61030476,138.12,138.08,10.47882769]
[1763337301162,5.61030476,138.12,138.09,0.69]
[1763337301372,5.61030476,138.11,138.07,10.47882769]
[1763337301580,5.61030476,138.11,138.05,15.39913245]
[1763337301785,5.61030476,138.11,138.08,0.69]
[1763337302170,5.61030476,138.11,138.09,9.78882769]
[1763337303391,5.61030476,138.1,138.09,9.78882769]
[1763337303598,5.61030476,138.1,138.04,5.61030476]
[1763337303599,5.87030476,138.1,138.05,9.78882769]
[1763337303781,5.61030476,138.08,138.05,0.69]
[1763337303981,5.61030476,138.09,138.07,9.78882769]
[1763337304864,9.38496284,138.08,138.04,0.69]
[1763337305091,9.38496284,138.07,138.03,9.78882769]
[1763337305392,9.38496284,138.06,138.03,10.47882769]
[1763337305570,9.38496284,138.06,138.01,9.38496284]
[1763337305776,9.38496284,138.06,138.05,9.78882769]
[1763337306178,9.38496284,138.06,138.02,10.47882769]
[1763337306574,9.38496284,138.06,138.03,0.69]
[1763337307900,103.46,138.13,138.04,19.17379053]
[1763337308063,22.6512,138.1,138.05,9.38496284]
[1763337308269,9.38496284,138.09,138.04,0.69]
[1763337308480,9.38496284,138.09,138.05,9.78882769]
[1763337308767,32.29616284,138.1,138.04,10.07496284]
[1763337308991,9.38496284,138.09,138.05,9.78882769]
[1763337309191,9.38496284,138.09,138.05,10.47882769]
[1763337309866,9.38496284,138.07,138.04,9.78882769]
[1763337310289,22.6512,138.1,138.05,9.78882769]
[1763337310488,9.38496284,138.07,138.05,9.78882769]
[1763337310798,9.38496284,138.07,138.04,9.78882769]
[1763337311006,9.38496284,138.06,138.04,9.78882769]
[1763337311298,22.6512,138.1,138.04,9.78882769]
[1763337311462,9.38496284,138.06,138.04,9.78882769]
[1763337311664,9.38496284,138.07,138.04,9.78882769]
[1763337311884,9.38496284,138.06,138.01,10.07496284]
[1763337312082,9.38496284,138.05,138.04,9.78882769]
[1763337312493,103.2,138.09,138.01,32.44002769]
[1763337312664,9.38496284,138.04,138.01,32.44002769]
[1763337312866,103.2,138.09,138.01,32.44002769]
[1763337313070,9.38496284,138.05,138.01,33.13002769]
[1763337313475,9.38496284,138.04,138.01,33.13002769]
[1763337313794,9.38496284,138.05,138.01,10.47882769]
[1763337313993,32.03616284,138.07,138.03,9.78882769]
[1763337314198,9.38496284,138.07,138.03,9.78882769]
[1763337314403,103.2,138.13,138.05,19.17379053]
[1763337314576,103.2,138.13,138.07,9.78882769]
[1763337314577,9.38496284,138.12,138.07,9.78882769]
[1763337314898,32.03616284,138.12,138.07,19.17379053]
[1763337315080,9.38496284,138.12,138.09,9.78882769]
[1763337315390,32.03616284,138.12,138.09,9.78882769]
[1763337315591,9.38496284,138.11,138.07,9.78882769]
[1763337315897,22.6512,138.12,138.07,9.78882769]
[1763337315898,9.38496284,138.1,138.07,10.47882769]
[1763337316282,9.38496284,138.11,138.07,10.47882769]
[1763337317085,9.38496284,138.08,138.04,0.65]
[1763337317403,9.38496284,138.08,138.05,9.78882769]
[1763337317603,32.03616284,138.09,138.05,0.65]
[1763337320530,9.38496284,138.07,138.02,0.69]
[1763337320814,9.38496284,138.07,138.04,9.78882769]
[1763337321016,9.38496284,138.06,138.04,9.78882769]
[1763337321492,9.38496284,138.07,138.04,9.78882769]
[1763337322210,9.38496284,138.07,138.02,9.38496284]
[1763337322419,9.38496284,138.07,138.04,0.69]
[1763337323017,9.38496284,138.07,138.05,9.78882769]
[1763337323215,0.30027545,138.07,138.05,9.78882769]
[1763337323423,0.30027545,138.07,138.03,10.47882769]
[1763337324122,0.30027545,138.07,138.03,9.78882769]
[1763337324423,0.30027545,138.07,138.05,9.78882769]
[1763337324825,0.30027545,138.07,138.04,9.78882769]
[1763337326121,0.30027545,138.07,138.04,10.47882769]
[1763337326321,9.38496284,138.07,138.04,10.47882769]
[1763337326504,9.38496284,138.07,138.04,9.78882769]
[1763337327212,9.38496284,138.07,138.02,9.78882769]
[1763337327418,9.38496284,138.07,138.04,0.69]
[1763337328030,22.6512,138.1,138.04,0.69]
[1763337328219,9.38496284,138.07,138.04,0.69]
[1763337329046,3.37002573,138.07,138.05,9.78882769]
[1763337330342,22.6512,138.05,138.0,10.48882769]
[1763337330634,3.37002573,138.01,137.96,0.7]
[1763337330831,22.6512,138.03,137.95,15.87985895]
[1763337330832,3.37002573,137.98,137.95,9.78882769]
[1763337331024,0.44083272,137.98,137.97,9.78882769]
[1763337331238,3.37002573,137.99,137.97,9.78882769]
[1763337331529,3.37002573,137.99,137.96,0.7]
[1763337331732,22.6512,137.99,137.94,0.2]
[1763337331932,3.37002573,137.95,137.94,0.2]
[1763337332130,22.6512,137.97,137.94,9.98882769]
[1763337332336,3.37002573,137.95,137.94,9.98882769]
[1763337332707,3.37002573,137.95,137.94,0.2]
[1763337333130,24.77539477,137.95,137.94,0.2]
[1763337333737,22.6512,137.92,137.91,0.2]
[1763337334046,26.02122573,137.92,137.91,0.2]
[1763337334227,3.37002573,137.92,137.91,0.2]
[1763337334834,9.41145155,137.92,137.91,0.2]
[1763337337736,32.06265155,137.92,137.91,0.2]
[1763337338077,59.41145155,137.92,137.91,0.2]
[1763337338252,59.41145155,137.92,137.84,0.2]
[1763337338253,22.6512,137.89,137.84,0.2]
[1763337338547,9.41145155,137.86,137.84,9.98882769]
[1763337338752,9.41145155,137.86,137.84,10.68882769]
[1763337338924,9.41145155,137.86,137.84,9.98882769]
[1763337339128,9.41145155,137.86,137.84,10.68882769]
[1763337339758,32.06265155,137.87,137.84,9.98882769]
[1763337339935,32.06265155,137.89,137.85,0.7]
[1763337340954,9.41145155,137.88,137.85,0.7]
[1763337341735,32.06265155,137.86,137.84,9.98882769]
[1763337341949,9.41145155,137.85,137.84,9.98882769]
[1763337342140,22.6512,137.86,137.84,9.98882769]
[1763337342349,22.6512,137.86,137.84,10.68882769]
[1763337342558,22.6512,137.86,137.84,9.98882769]
[1763337342756,32.06265155,137.86,137.84,9.98882769]
[1763337343628,32.06265155,137.86,137.85,0.7]
[1763337343629,22.6512,137.86,137.85,0.7]
[1763337345362,21.9312,137.86,137.85,0.7]
[1763337345659,9.41145155,137.9,137.86,9.78882769]
[1763337345834,9.41145155,137.89,137.86,9.78882769]
[1763337346035,9.41145155,137.88,137.84,0.2]
[1763337346265,9.41145155,137.86,137.84,0.2]
[1763337346560,10.12145155,137.85,137.84,0.2]
[1763337346759,9.41145155,137.85,137.84,0.2]
[1763337347742,9.41145155,137.85,137.84,9.98882769]
[1763337348657,9.41145155,137.85,137.83,0.2]
[1763337348658,10.12145155,137.85,137.83,0.2]
[1763337348846,9.41145155,137.84,137.83,0.2]
[1763337349359,9.41145155,137.84,137.79,0.2]
[1763337349360,10.12145155,137.84,137.79,0.2]
[1763337349563,9.41145155,137.83,137.79,0.9]
[1763337349782,9.41145155,137.83,137.79,0.2]
[1763337349783,32.06265155,137.8,137.79,0.2]
[1763337349939,32.06265155,137.8,137.78,0.2]
[1763337350138,10.12145155,137.79,137.78,0.2]
[1763337350346,10.12145155,137.79,137.77,0.2]
[1763337350643,9.2283319,137.83,137.77,0.2]
[1763337350644,32.77265155,137.78,137.77,0.2]
[1763337350958,32.06265155,137.78,137.74,0.2]
[1763337351287,9.41145155,137.75,137.74,0.2]
[1763337351572,31.36436131,137.75,137.74,0.2]
[1763337351779,10.02145155,137.75,137.74,0.2]
[1763337352584,10.02145155,137.75,137.72,0.2]
[1763337352754,60.02145155,137.74,137.7,0.2]
[1763337352943,32.06265155,137.71,137.7,0.2]
[1763337353146,32.06265155,137.71,137.68,0.2]
[1763337353478,9.41145155,137.69,137.68,0.2]
[1763337353685,9.41145155,137.69,137.63,0.2]
[1763337353686,72.6512,137.68,137.63,0.2]
[1763337353849,32.06265155,137.66,137.63,0.2]
[1763337354386,9.41145155,137.64,137.63,0.2]
[1763337355356,23.1612,137.67,137.63,0.2]
[1763337355679,9.41145155,137.64,137.63,0.2]
[1763337355976,9.41145155,137.65,137.64,9.78882769]
[1763337356278,9.41145155,137.65,137.63,0.2]
[1763337356490,9.41145155,137.64,137.63,0.2]
[1763337356664,32.57265155,137.64,137.63,0.2]
[1763337357482,9.92145155,137.64,137.63,0.2]
[1763337357659,72.6512,137.63,137.62,0.2]
[1763337357862,32.06265155,137.63,137.62,0.2]
[1763337358095,32.57265155,137.63,137.62,0.2]
[1763337358469,32.57265155,137.63,137.61,0.2]
[1763337358768,32.06265155,137.62,137.61,0.2]
[1763337359293,32.06265155,137.62,137.59,9.78882769]
[1763337359505,22.6512,137.6,137.59,9.78882769]
[1763337360307,9.41145155,137.62,137.59,0.69]
[1763337360504,0.51,137.69,137.61,9.78882769]
[1763337360703,9.41145155,137.62,137.61,9.78882769]
[1763337360871,22.6512,137.63,137.62,10.47882769]
[1763337361208,9.41145155,137.67,137.63,9.78882769]
[1763337361506,9.41145155,137.67,137.65,9.78882769]
[1763337362004,22.6512,137.67,137.66,10.47882769]
[1763337362888,22.6512,137.64,137.59,0.69]
[1763337363186,9.41145155,137.64,137.6,9.78882769]
[1763337363405,22.6512,137.66,137.54,0.2]
[1763337363406,9.41145155,137.61,137.56,0.69]
[1763337363575,9.41145155,137.61,137.57,9.78882769]
[1763337363777,32.06265155,137.62,137.57,19.20027924]
[1763337364003,22.6512,137.6,137.59,9.78882769]
[1763337364201,9.41145155,137.62,137.59,0.69]
[1763337364412,9.41145155,137.62,137.61,9.78882769]
[1763337364913,2.0,137.7,137.61,9.78882769]
[1763337364914,22.6512,137.64,137.61,10.47882769]
[1763337365219,8.04188649,137.99,137.59,9.41145155]
[1763337365220,0.51,137.71,137.63,19.20027924]
[1763337365391,32.06265155,137.69,137.63,19.20027924]
[1763337365713,22.6512,137.69,137.65,9.78882769]
[1763337365895,9.41145155,137.68,137.65,9.78882769]
[1763337366094,9.41145155,137.69,137.65,0.69]
[1763337366309,9.41145155,137.67,137.65,0.69]
[1763337366602,9.41145155,137.69,137.66,9.78882769]
[1763337366803,5.64718272,137.69,137.66,9.78882769]
[1763337366982,153.2,137.76,137.67,0.69]
[1763337366983,0.51,137.75,137.67,0.69]
[1763337367181,5.64718272,137.71,137.67,0.69]
[1763337368207,22.6512,137.68,137.67,10.47882769]
[1763337368881,0.51,137.76,137.68,9.78882769]
[1763337369081,5.64718272,137.72,137.68,10.47882769]
[1763337369304,5.64718272,137.71,137.67,9.78882769]